bitfinex-derivatives/quotes_ETHF0:USTF0_20240830
["timestamp","ask_amount","ask_price","bid_price","bid_amount"]
[1724988562649,0.39723,2517.3,2517.2,4.5146608]
[1724988562854,0.39723,2517.3,2517.2,5.13198197]
[1724988563043,0.39723,2517.3,2517.2,5.62870161]
[1724988563753,0.39723,2517.3,2517.2,6.24959128]
[1724988564546,12.30369706,2517.5,2516.9,0.7970582]
[1724988564748,0.39724,2517.2,2517.1,0.62087274]
[1724988564945,7.58657657,2517.3,2517.1,2.54491447]
[1724988565145,6.16074847,2517.2,2517.1,0.62089665]
[1724988565347,6.16074847,2517.2,2517.1,2.54397713]
[1724988565542,6.16074847,2517.2,2517.1,5.89588048]
[1724988565754,10.13354847,2517.2,2517.0,0.85392507]
[1724988565954,5.76350847,2517.1,2517.0,0.85392507]
[1724988566148,6.16076847,2517.1,2517.0,0.85392507]
[1724988566456,6.16076847,2517.1,2517.0,0.45666507]
[1724988566657,0.39726,2517.1,2517.0,0.45666507]
[1724988567056,0.39726,2517.1,2517.0,3.54787131]
[1724988567243,4.37006,2517.1,2517.0,3.54787131]
[1724988567645,4.37006,2517.1,2517.0,4.58562851]
[1724988567957,5.36321,2517.1,2517.0,4.58562834]
[1724988568156,5.36321,2517.1,2517.0,2.0787287]
[1724988568353,5.36321,2517.1,2517.0,1.03775703]
[1724988569463,5.36321,2517.1,2517.0,2.0787287]
[1724988570466,4.37006,2517.1,2517.0,2.0787287]
[1724988571355,4.37006,2517.1,2517.0,1.04097167]
[1724988571559,0.39727,2517.0,2516.9,1.66190226]
[1724988571758,4.37007,2517.0,2516.9,4.6866682]
[1724988574054,4.37007,2517.0,2516.9,4.68666848]
[1724988574556,5.36326,2517.0,2516.9,2.07876049]
[1724988574966,5.36326,2517.0,2516.9,1.04097167]
[1724988575265,9.78645,2517.0,2516.9,1.03781275]
[1724988575559,0.39734,2516.6,2516.5,1.66192218]
[1724988575862,4.37014,2516.6,2516.5,2.96773661]
[1724988576555,4.37014,2516.6,2516.5,1.92676494]
[1724988577662,4.37014,2516.6,2516.5,2.96018638]
[1724988578362,0.39735,2516.5,2516.4,1.04097167]
[1724988578663,4.37015,2516.5,2516.4,3.11229935]
[1724988578862,4.37015,2516.5,2516.4,4.39853307]
[1724988579167,4.37015,2516.5,2516.4,4.00116307]
[1724988580566,4.37015,2516.5,2516.4,2.9601914]
[1724988581764,4.37015,2516.5,2516.4,2.96020828]
[1724988583464,5.36354,2516.5,2516.4,2.54330551]
[1724988584564,4.37015,2516.5,2516.4,2.54330551]
[1724988585068,4.37015,2516.5,2516.4,1.43527442]
[1724988585267,4.37015,2516.5,2516.4,3.35753886]
[1724988585561,4.37015,2516.5,2516.4,2.94064204]
[1724988585954,0.39735,2516.5,2516.4,2.94064204]
[1724988586165,0.39734,2516.6,2516.5,0.39734]
[1724988586364,0.39733,2516.7,2516.6,0.39734]
[1724988586575,4.37013,2516.7,2516.6,2.54323677]
[1724988586869,4.37013,2516.7,2516.6,1.50536762]
[1724988588164,4.37013,2516.7,2516.6,1.90270762]
[1724988588368,4.37013,2516.7,2516.6,1.50536762]
[1724988592265,0.39734,2516.6,2516.5,0.39734]
[1724988592663,0.39734,2516.6,2516.5,1.28618022]
[1724988592865,0.39734,2516.6,2516.5,2.94056095]
[1724988594180,5.36349,2516.6,2516.5,2.54322095]
[1724988594374,5.36349,2516.6,2516.3,1.04097167]
[1724988594375,0.39737,2516.5,2516.4,0.39736]
[1724988594573,4.37017,2516.5,2516.4,3.09281068]
[1724988594773,4.37017,2516.5,2516.4,3.98170338]
[1724988595074,4.37017,2516.5,2516.4,2.94073171]
[1724988595480,4.37017,2516.5,2516.4,3.98170338]
[1724988596277,3.9728,2516.5,2516.4,1.43833167]
[1724988596469,3.9728,2516.5,2516.4,6.38587653]
[1724988598181,4.37015,2516.5,2516.4,6.38587653]
[1724988599170,4.37015,2516.5,2516.4,6.38588097]
[1724988599973,4.37015,2516.5,2516.4,3.42566367]
[1724988600175,4.37015,2516.5,2516.4,3.84257146]
[1724988600377,4.37015,2516.5,2516.4,6.38588358]
[1724988602379,4.37015,2516.5,2516.4,2.384692]
[1724988602568,4.37015,2516.5,2516.4,2.80159254]
[1724988602781,3.9728,2516.5,2516.4,5.34483585]
[1724988603179,3.9728,2516.5,2516.4,6.38509551]
[1724988603887,4.37015,2516.5,2516.4,5.98773551]
[1724988604071,6.79354,2516.5,2516.4,4.00043896]
[1724988604267,10.00134,2516.5,2516.4,2.54327876]
[1724988604677,10.00134,2516.5,2516.4,1.50537142]
[1724988605079,8.57134,2516.5,2516.4,1.50537142]
[1724988605274,7.57795,2516.5,2516.4,2.9407667]
[1724988605481,7.1806,2516.5,2516.4,2.9407667]
[1724988605983,7.57795,2516.5,2516.4,2.5433967]
[1724988606292,7.57795,2516.5,2516.4,2.54339818]
[1724988606679,7.1806,2516.5,2516.4,2.94076818]
[1724988607081,7.57795,2516.5,2516.4,2.54339818]
[1724988608881,7.57795,2516.5,2516.4,2.94076818]
[1724988609282,7.1806,2516.5,2516.4,2.94076818]
[1724988609482,7.1806,2516.5,2516.4,3.35768331]
[1724988609686,7.1806,2516.5,2516.4,3.35768144]
[1724988609882,7.1806,2516.5,2516.4,1.85222876]
[1724988610090,7.1806,2516.5,2516.4,4.39790401]
[1724988610392,7.1806,2516.5,2516.4,3.35764435]
[1724988610582,7.1806,2516.5,2516.4,4.39790401]
[1724988611092,7.1806,2516.5,2516.4,2.96027435]
[1724988611093,9.00795,2516.5,2516.4,2.96027435]
[1724988611390,9.00795,2516.5,2516.4,2.54335687]
[1724988611587,10.00134,2516.5,2516.2,1.04025966]
[1724988611892,0.39742,2516.1,2516.0,1.04025966]
[1724988612087,0.39742,2516.1,2516.0,4.00092303]
[1724988612088,3.60522,2516.1,2516.0,4.00092303]
[1724988612291,7.57802,2516.1,2516.0,4.00092303]
[1724988612588,7.1806,2516.1,2516.0,4.00092303]
[1724988613496,7.1806,2516.1,2516.0,4.00092806]
[1724988613993,7.1806,2516.1,2516.0,4.00088164]
[1724988614387,3.9728,2516.1,2516.0,4.00088164]
[1724988615087,4.37022,2516.1,2516.0,4.00088164]
[1724988615386,9.00802,2516.1,2516.0,2.96062198]
[1724988615686,9.00802,2516.1,2516.0,2.54364247]
[1724988615886,9.00802,2516.1,2516.0,1.50557704]
[1724988616090,14.39992246,2516.1,2516.0,1.50557704]
[1724988616280,14.39992246,2516.1,2516.0,0.6165902]
[1724988617282,14.39992246,2516.1,2515.5,4.24805966]
[1724988617283,0.39748,2515.7,2515.5,4.24805966]
[1724988617482,0.7345,2515.6,2515.5,3.2078]
[1724988617681,0.7345,2515.6,2515.5,5.75176517]
[1724988618089,1.13199,2515.6,2515.5,2.54396517]
[1724988618686,5.10479,2515.6,2515.5,2.54396517]
[1724988619196,5.10479,2515.6,2515.5,1.50575947]
[1724988619495,5.10479,2515.6,2515.5,0.61666039]
[1724988620587,0.39755,2515.3,2515.0,0.43758]
[1724988620789,3.9728,2515.1,2515.0,0.43758]
[1724988620988,3.9728,2515.1,2515.0,2.98183335]
[1724988621183,3.9728,2515.1,2515.0,1.54592239]
[1724988621390,4.37037,2515.1,2515.0,1.54592239]
[1724988621593,5.12177,2515.1,2515.0,2.5842318]
[1724988621794,5.12177,2515.1,2515.0,1.54592239]
[1724988623187,5.12177,2515.1,2515.0,1.54596596]
[1724988623384,5.12177,2515.1,2515.0,0.65673984]
[1724988624294,10.75351,2515.1,2515.0,0.04]
[1724988625198,15.1963613,2515.1,2515.0,0.04]
[1724988626201,17.2063613,2515.1,2515.0,0.04]
[1724988627197,12.7724213,2515.1,2515.0,0.04]
[1724988627407,7.1806,2515.1,2515.0,0.43759]
[1724988627694,7.1806,2515.1,2515.0,0.04]
[1724988627900,7.1806,2515.1,2515.0,0.43759]
[1724988628492,7.57817,2515.1,2515.0,0.04]
[1724988633102,7.57817,2515.1,2515.0,0.43759]
[1724988633305,7.57817,2515.1,2515.0,0.04]
[1724988634697,4.37037,2515.1,2515.0,0.04]
[1724988636289,12.93219489,2515.1,2515.0,0.04]
[1724988636896,19.92613489,2515.1,2515.0,0.04]
[1724988637098,0.725,2514.5,2514.1,0.7445]
[1724988637309,0.725,2514.2,2514.1,1.14223]
[1724988638198,1.12272,2514.2,2514.1,1.14223]
[1724988638399,1.12272,2514.2,2514.0,0.39773]
[1724988638598,0.725,2514.1,2514.0,0.39773]
[1724988638793,0.27957757,2514.1,2514.0,0.39773]
[1724988639304,0.67730757,2514.1,2514.0,0.39773]
[1724988640309,0.39775,2514.0,2513.9,0.39775]
[1724988640496,3.48737757,2514.0,2513.9,0.39775]
[1724988645302,3.88512757,2514.0,2513.9,0.39775]
[1724988646201,3.48737757,2514.0,2513.8,0.7472]
[1724988646394,0.27957757,2513.9,2513.8,1.14497]
[1724988646599,0.67733757,2513.9,2513.8,1.14497]
[1724988647000,0.27957757,2513.9,2513.8,1.14497]
[1724988655404,3.2078,2514.0,2513.9,1.39218]
[1724988655709,3.2078,2514.0,2513.9,6.79978]
[1724988655907,3.2078,2514.0,2513.9,13.41662581]
[1724988656311,0.0059635,2514.1,2514.0,0.39775]
[1724988656515,0.0059635,2514.1,2514.0,13.33275581]
[1724988656813,3.2078,2514.4,2514.3,1.39196]
[1724988657019,3.2078,2514.4,2514.3,3.43876774]
[1724988657315,3.2078,2514.4,2514.3,12.42130774]
[1724988657506,0.3816,2514.8,2514.3,53.81784774]
[1724988657707,1.05879757,2514.8,2514.6,0.39764]
[1724988658621,0.27957757,2514.7,2514.5,0.39766]
[1724988658911,0.27957757,2514.7,2514.4,0.0059635]
[1724988658912,0.27957757,2514.5,2514.4,0.4036335]
[1724988659414,0.27957757,2514.5,2514.4,1.02045662]
[1724988660308,0.67724757,2514.5,2514.4,1.02045662]
[1724988660619,3.88504757,2514.5,2514.4,0.0059635]
[1724988661312,3.88504757,2514.5,2514.4,0.62279553]
[1724988661707,3.88504757,2514.5,2514.4,1.02047553]
[1724988661910,3.48737757,2514.5,2514.4,1.02047553]
[1724988662611,3.88504757,2514.5,2514.4,0.62279553]
[1724988663421,3.88504757,2514.5,2514.4,0.62280573]
[1724988664107,10.87922757,2514.5,2514.4,0.62280573]
[1724988664415,0.39775,2514.0,2513.8,0.39777]
[1724988664620,0.64937757,2513.9,2513.8,0.39777]
[1724988664814,1.04713757,2513.9,2513.8,42.70414203]
[1724988665120,1.04713757,2513.9,2513.8,42.30637203]
[1724988665520,0.64937757,2513.9,2513.8,42.70415203]
[1724988665717,1.04713757,2513.9,2513.8,1.50637203]
[1724988667120,0.39779,2513.8,2513.6,0.39781]
[1724988667310,0.67736757,2513.8,2513.5,4.24805966]
[1724988667510,0.66597757,2513.8,2513.7,1.01470675]
[1724988667713,1.06375757,2513.8,2513.7,2.54510869]
[1724988667915,1.06375757,2513.8,2513.7,1.50640606]
[1724988668620,8.70601757,2513.8,2513.7,0.61690675]
[1724988669015,0.39785,2513.4,2513.2,0.39786]
[1724988669216,1.04697757,2513.3,2513.2,0.39786]
[1724988669521,1.44483757,2513.3,2513.2,1.50660133]
[1724988669726,1.04697757,2513.3,2513.2,1.90447133]
[1724988670414,1.44483757,2513.3,2513.2,1.50660133]
[1724988671831,1.44483757,2513.3,2513.2,0.88961705]
[1724988672019,1.44483757,2513.3,2513.2,1.50663218]
[1724988672227,1.44483757,2513.3,2513.2,0.61699616]
[1724988672427,1.44483757,2513.3,2513.2,1.50661764]
[1724988672926,1.44483757,2513.3,2513.2,0.61699616]
[1724988673823,1.44483757,2513.3,2513.1,0.39788]
[1724988674023,1.16526,2513.3,2513.2,0.61699875]
[1724988674521,1.44483757,2513.3,2513.2,0.61699875]
[1724988677032,1.44483757,2513.3,2513.1,0.39788]
[1724988677332,0.67744757,2513.2,2513.1,0.39788]
[1724988677530,0.67744757,2513.2,2513.1,1.01488257]
[1724988677928,0.27957757,2513.2,2513.1,1.01488257]
[1724988678526,0.27957757,2513.2,2513.1,1.90452813]
[1724988684353,0.27957757,2513.2,2513.1,1.28751264]
[1724988684548,0.64787757,2513.2,2513.1,1.90450669]
[1724988685653,1.04574757,2513.2,2513.1,1.90450669]
[1724988686048,1.41044757,2513.2,2513.1,0.61699405]
[1724988686553,5.84513757,2513.2,2513.1,0.61699405]
[1724988686752,10.3001161,2513.2,2513.1,0.61699405]
[1724988687154,0.39792,2513.0,2512.8,0.39793]
[1724988687455,0.63437757,2512.9,2512.8,0.39794]
[1724988687653,0.63437757,2512.9,2512.8,1.90468914]
[1724988689458,1.03229757,2512.9,2512.8,1.01498116]
[1724988690949,0.39794,2512.8,2512.7,0.39795]
[1724988691464,0.39795,2512.7,2512.6,0.39796]
[1724988691660,0.27957757,2512.6,2512.5,1.82731305]
[1724988691958,0.67754757,2512.6,2512.5,3.33415716]
[1724988692860,0.27957757,2512.6,2512.5,2.94405716]
[1724988693554,0.27957757,2512.6,2512.5,1.90482411]
[1724988694366,0.27957757,2512.6,2512.5,0.39798]
[1724988694655,0.27957757,2512.6,2512.5,1.90481257]
[1724988697759,0.27957757,2512.6,2512.5,0.39798]
[1724988697952,0.27957757,2512.6,2512.5,1.90480779]
[1724988698758,0.3771,2512.7,2512.6,0.39797]
[1724988698958,0.3771,2512.7,2512.6,1.01504142]
[1724988699461,0.77505,2512.7,2512.6,1.01504142]
[1724988700469,0.3771,2512.7,2512.6,1.01504142]
[1724988701756,0.3771,2512.7,2512.6,1.01503542]
[1724988702365,0.77505,2512.7,2512.6,1.01503542]
[1724988702564,0.3771,2512.7,2512.6,1.01503542]
[1724988704171,0.3771,2512.7,2512.6,1.90479939]
[1724988704969,0.3771,2512.7,2512.6,1.90481033]
[1724988705369,0.3771,2512.7,2512.6,1.90479173]
[1724988705560,0.3548,2512.9,2512.8,0.39794]
[1724988705763,3.2078,2513.0,2512.9,0.39792]
[1724988705971,3.2078,2513.0,2512.9,1.01498909]
[1724988706170,5.4315,2513.3,2512.9,0.61706909]
[1724988706472,5.82936,2513.3,2513.1,0.39788]
[1724988706660,0.39787,2513.2,2513.1,0.39788]
[1724988706973,0.39787,2513.2,2513.1,1.01490514]
[1724988708367,1.82787,2513.2,2513.1,0.61702514]
[1724988708665,5.82937,2513.3,2513.1,0.61702514]
[1724988708861,5.4315,2513.3,2513.2,1.01489035]
[1724988709065,3.2078,2513.3,2513.2,1.90453823]
[1724988709666,0.7797635,2513.6,2513.5,0.39783]
[1724988709667,0.0059635,2513.6,2513.5,0.39783]
[1724988709971,0.0059635,2513.6,2513.5,47.72168741]
[1724988710564,0.0059635,2513.6,2513.5,48.1390046]
[1724988711158,0.0059635,2513.6,2513.5,49.17823765]
[1724988711362,0.0059635,2513.6,2513.5,51.78951555]
[1724988711560,0.0059635,2513.6,2513.5,59.30370208]
[1724988711770,0.0059635,2513.6,2513.5,58.30913208]
[1724988712167,0.0059635,2513.6,2513.5,57.89181489]
[1724988712372,0.0059635,2513.6,2513.5,57.68718487]
[1724988712674,0.0059635,2513.6,2513.5,55.14172238]
[1724988712870,0.0059635,2513.6,2513.5,57.6867613]
[1724988713167,0.0059635,2513.6,2513.5,58.30842729]
[1724988713868,0.0059635,2513.6,2513.5,47.1897098]
[1724988714363,0.0059635,2513.6,2513.5,44.80251966]
[1724988714560,0.0059635,2513.6,2513.5,4.00251966]
[1724988714766,7.9572735,2513.6,2513.5,1.50636653]
[1724988715064,18.06369808,2513.6,2513.0,1.04019808]
[1724988715273,3.6057,2513.1,2512.9,1.04019808]
[1724988715467,0.7369,2513.0,2512.8,1.43812808]
[1724988715963,1.13481,2513.0,2512.8,1.04019808]
[1724988716273,0.39792,2512.9,2512.7,1.04019808]
[1724988716471,0.7369,2513.0,2512.7,1.43814808]
[1724988716472,1.13481,2513.0,2512.7,1.43814808]
[1724988717069,0.39794,2512.8,2512.7,1.04019808]
[1724988717267,3.60574,2512.8,2512.7,0.41744226]
[1724988717466,10.6278,2512.8,2512.4,1.66211278]
[1724988717678,0.398,2512.5,2512.3,1.04019808]
[1724988717882,0.80171,2512.4,2512.2,1.43209808]
[1724988718370,0.4037,2512.4,2512.2,1.83012808]
[1724988719675,0.4037,2512.4,2512.2,1.43209808]
[1724988719879,0.4037,2512.4,2512.2,1.04019808]
[1724988720077,0.4037,2512.4,2512.2,1.43822808]
[1724988720273,0.4037,2512.4,2512.3,0.39802]
[1724988720470,0.4037,2512.4,2512.3,0.81552133]
[1724988720680,0.4037,2512.4,2512.2,1.43821808]
[1724988720882,3.5768,2512.5,2512.3,0.39801]
[1724988721080,0.80081,2512.4,2512.1,43.79708766]
[1724988721380,0.39802,2512.3,2512.1,40.8]
[1724988721975,0.39803,2512.2,2512.1,40.8]
[1724988722374,3.44,2512.3,2511.8,4.24799808]
[1724988722679,3.2078,2512.2,2511.7,1.04019808]
[1724988722890,3.4459635,2512.3,2512.0,0.39806]
[1724988723082,0.0059635,2512.3,2511.8,46.27541808]
[1724988723385,0.0059635,2512.3,2512.2,0.39803]
[1724988723584,0.0059635,2512.3,2512.2,4.37883]
[1724988724293,0.0059635,2512.3,2512.2,0.39803]
[1724988724778,0.0059635,2512.3,2512.2,4.37883]
[1724988724978,0.0059635,2512.3,2512.2,5.26831238]
[1724988726987,0.0059635,2512.3,2512.2,5.88513525]
[1724988728585,0.0059635,2512.3,2512.2,4.37883]
[1724988728776,0.0059635,2512.3,2512.2,5.88513212]
[1724988731290,0.4039835,2512.3,2512.2,1.50630212]
[1724988731777,0.0059635,2512.3,2512.2,0.88949983]
[1724988732182,0.4039835,2512.3,2512.2,2.39583298]
[1724988733386,0.0059635,2512.3,2512.2,1.50633315]
[1724988733578,0.4039835,2512.3,2512.2,1.50633315]
[1724988733783,0.0059635,2512.3,2512.2,1.90436315]
[1724988734084,0.0059635,2512.3,2512.2,5.88516315]
[1724988734687,0.0059635,2512.3,2512.2,5.48713315]
[1724988734888,0.4039835,2512.3,2512.2,5.48713315]
[1724988735093,0.8090835,2512.3,2512.2,5.48713315]
[1724988735287,3.6188635,2512.3,2512.2,1.50629152]
[1724988735590,8.9927335,2512.3,2512.2,0.61681682]
[1724988735795,0.99509,2512.2,2511.6,1.43831808]
[1724988736000,0.3981,2511.8,2511.7,1.50647911]
[1724988736194,0.3981,2511.8,2511.7,42.30647911]
[1724988736401,0.3981,2511.8,2511.7,42.70458911]
[1724988736589,0.3981,2511.8,2511.7,42.30647911]
[1724988737498,0.3981,2511.8,2511.7,1.50647911]
[1724988737798,0.3981,2511.8,2511.7,0.61688898]
[1724988738199,0.7943,2511.8,2511.7,0.61688898]
[1724988738997,11.20144744,2511.8,2511.7,0.61691328]
[1724988739193,11.20144744,2511.8,2511.1,1.28791057]
[1724988739194,0.39818,2511.3,2511.1,1.28791057]
[1724988739497,0.39818,2511.3,2511.2,0.6169698]
[1724988739701,1.39363,2511.3,2511.2,0.6169698]
[1724988739999,0.39821,2511.1,2511.0,0.399]
[1724988740197,0.39821,2511.1,2511.0,0.61697527]
[1724988740500,0.39821,2511.1,2511.0,4.59937527]
[1724988740695,3.2078,2511.2,2511.1,0.39821]
[1724988740903,3.2078,2511.2,2511.1,1.01518527]
[1724988741398,3.2078,2511.2,2510.9,0.3936]
[1724988741399,0.39822,2511.0,2510.9,0.3936]
[1724988741696,0.39822,2511.0,2510.9,0.61696874]
[1724988741994,8.47374545,2511.0,2510.3,1.04019808]
[1724988742199,0.7796135,2510.9,2510.6,0.39828]
[1724988742395,0.7796135,2510.9,2510.3,0.7804]
[1724988742396,0.39826,2510.8,2510.5,0.39829]
[1724988742590,0.39826,2510.8,2510.3,0.98389774]
[1724988742591,0.3813635,2510.9,2510.7,0.39827]
[1724988742792,0.3813635,2510.9,2510.4,0.617022]
[1724988742997,0.3813635,2510.9,2510.7,0.39826]
[1724988742998,0.0059635,2510.9,2510.7,0.39826]
[1724988743194,0.0059635,2510.9,2510.8,0.39825]
[1724988743594,0.0059635,2510.9,2510.8,4.38065]
[1724988744292,0.0059635,2510.9,2510.8,10.38065]
[1724988744490,0.0059635,2510.9,2510.8,10.99761222]
[1724988744698,0.0059635,2510.9,2510.8,4.99761222]
[1724988744893,0.0059635,2510.9,2510.8,45.79761222]
[1724988745094,0.0059635,2510.9,2510.8,46.56641222]
[1724988746107,0.0059635,2510.9,2510.8,45.94945]
[1724988747007,0.0059635,2510.9,2510.8,46.56641168]
[1724988747209,0.0059635,2510.9,2510.8,45.94945]
[1724988747902,0.0059635,2510.9,2510.8,45.5512]
[1724988748101,0.0059635,2510.9,2510.8,45.94945]
[1724988748604,0.4042035,2510.9,2510.8,40.8]
[1724988748905,0.39827,2510.7,2510.6,0.3798]
[1724988749200,0.0059635,2510.9,2510.6,0.3798]
[1724988749201,0.39826,2510.8,2510.6,0.3798]
[1724988749403,0.39826,2510.8,2510.6,41.1798]
[1724988749795,0.39826,2510.8,2510.6,41.57809]
[1724988750004,0.0059635,2510.9,2510.7,0.39827]
[1724988750305,0.0059635,2510.9,2510.7,0.39826]
[1724988752011,0.0059635,2510.9,2510.8,0.39825]
[1724988752402,0.0059635,2510.9,2510.8,4.38065]
[1724988753910,3.2078,2511.2,2510.8,11.37629]
[1724988754108,0.3998,2511.5,2510.9,3.9824]
[1724988754313,13.8018,2511.6,2511.5,0.39814]
[1724988754511,10.594,2511.6,2511.5,0.39814]
[1724988754702,10.594,2511.6,2511.5,4.37974]
[1724988757213,10.594,2511.6,2511.5,4.78064]
[1724988757417,13.8018,2511.7,2511.6,0.39813]
[1724988757710,14.19992,2511.7,2511.5,3.9816]
[1724988757917,14.19992,2511.7,2511.4,0.39815]
[1724988758104,0.39813,2511.6,2511.4,41.19815]
[1724988758509,14.19992,2511.7,2511.4,45.17975]
[1724988758713,0.39813,2511.6,2511.4,41.19815]
[1724988759108,14.19992,2511.7,2511.5,0.39814]
[1724988759310,13.8018,2511.7,2511.6,0.39813]
[1724988759722,13.8018,2511.7,2511.4,40.8]
[1724988759912,13.8018,2511.7,2511.6,0.39813]
[1724988760415,13.8018,2511.7,2511.6,4.37973]
[1724988761217,10.594,2511.7,2511.6,4.99660814]
[1724988761619,9.99668228,2511.7,2511.6,4.99660814]
[1724988761828,9.99668228,2511.7,2511.6,11.88614432]
[1724988762116,9.99668228,2511.7,2511.6,5.88617668]
[1724988762418,9.99668228,2511.7,2511.6,4.99660814]
[1724988762613,9.39868228,2511.7,2511.6,5.48805438]
[1724988762810,9.79468228,2511.7,2511.6,4.99660814]
[1724988763008,9.79468228,2511.7,2511.6,4.59847814]
[1724988763213,9.79468228,2511.7,2511.6,4.99660814]
[1724988763419,9.79468228,2511.7,2511.6,5.88619599]
[1724988763719,9.79468228,2511.7,2511.6,1.90459599]
[1724988763923,10.19279228,2511.7,2511.6,0.61687814]
[1724988764124,10.60639228,2511.7,2511.6,0.61687814]
[1724988764422,10.20828228,2511.7,2511.6,4.99660814]
[1724988765218,9.39868228,2511.7,2511.6,5.88619157]
[1724988766110,6.16264578,2511.7,2511.6,12.88152157]
[1724988766320,6.16264578,2511.7,2511.6,13.87685157]
[1724988766619,6.16264578,2511.7,2511.6,14.27295157]
[1724988767019,5.16723198,2511.7,2511.6,14.42352326]
[1724988767224,5.16723198,2511.7,2511.6,15.31303713]
[1724988767814,5.16723198,2511.7,2511.6,17.30379713]
[1724988768119,5.16723198,2511.7,2511.6,17.72126532]
[1724988768120,4.34407198,2511.7,2511.6,17.72126532]
[1724988768327,4.34407198,2511.7,2511.6,18.86202625]
[1724988768721,2.52607198,2511.7,2511.6,18.86202625]
[1724988768919,1.72773198,2511.7,2511.6,18.86202625]
[1724988769124,0.81279198,2511.7,2511.6,18.86202625]
[1724988769426,1.98e-06,2511.7,2511.6,19.04164445]
[1724988769728,0.0059635,2511.8,2511.7,2.38869]
[1724988769920,0.0059635,2511.8,2511.7,9.70017705]
[1724988770126,0.0059635,2511.8,2511.7,15.28262899]
[1724988770318,0.0059635,2511.8,2511.7,15.70017705]
[1724988770521,0.0059635,2511.8,2511.7,15.28262899]
[1724988770720,0.0059635,2511.8,2511.7,17.69086638]
[1724988770921,0.0059635,2511.8,2511.7,15.70017705]
[1724988771121,0.0059635,2511.8,2511.7,20.89862231]
[1724988771826,3.2078,2513.2,2511.7,22.02279642]
[1724988772028,0.803,2513.0,2512.9,0.39792]
[1724988772330,0.803,2513.0,2512.9,5.34397661]
[1724988772625,0.39784,2513.5,2513.1,0.39788]
[1724988772824,0.803,2513.2,2513.1,0.39788]
[1724988773031,0.803,2513.2,2513.1,1.01454807]
[1724988773227,0.803,2513.2,2513.1,4.99374807]
[1724988774219,0.803,2513.2,2513.1,4.37708]
[1724988774831,0.0059635,2513.6,2513.1,4.59584877]
[1724988775019,0.0059635,2513.6,2513.0,0.0059635]
[1724988775020,0.7649635,2513.6,2513.5,0.39783]
[1724988775427,0.7649635,2513.6,2513.5,4.37623]
[1724988777238,0.7649635,2513.6,2513.5,0.39783]
[1724988778334,1.1627835,2513.6,2513.1,3.44]
[1724988778634,0.39785,2513.4,2513.1,0.39788]
[1724988778833,0.39786,2513.3,2513.0,0.4038535]
[1724988779040,0.39786,2513.3,2513.0,0.0059635]
[1724988779327,3.2078,2513.4,2513.0,0.4038635]
[1724988779328,3.60565,2513.4,2513.0,0.4038635]
[1724988779529,0.39786,2513.3,2513.0,0.4038635]
[1724988780223,0.39788,2513.2,2513.0,0.0059635]
[1724988780435,0.3851,2513.3,2513.1,0.39788]
[1724988780627,3.2078,2513.4,2513.3,0.39786]
[1724988781139,0.7649635,2513.6,2513.5,0.39783]
[1724988781634,0.7649635,2513.6,2513.5,4.37623]
[1724988781841,0.7649635,2513.6,2513.4,0.39783]
[1724988782631,1.1627835,2513.6,2513.3,0.39785]
[1724988782830,0.7649635,2513.6,2513.0,4.06257831]
[1724988783031,0.7649635,2513.6,2513.4,0.39784]
[1724988783433,0.7649635,2513.6,2513.1,0.99473]
[1724988783629,0.0059635,2513.6,2513.5,0.39783]
[1724988784031,0.0059635,2513.6,2513.5,4.37623]
[1724988786032,0.0059635,2513.6,2513.5,0.39783]
[1724988787536,0.0059635,2513.6,2513.5,4.37623]
[1724988787737,0.0059635,2513.6,2513.5,5.3708]
[1724988788731,0.0059635,2513.6,2513.5,8.5786]
[1724988788931,0.0059635,2513.6,2513.5,15.57317]
[1724988789338,0.0059635,2513.6,2513.5,13.58403]
[1724988789642,0.0059635,2513.6,2513.5,7.58403]
[1724988792157,0.0059635,2513.6,2513.5,10.6002]
[1724988792449,0.0059635,2513.6,2513.5,13.58403]
[1724988793045,0.0059635,2513.6,2513.5,14.5786]
[1724988794437,0.0059635,2513.6,2513.5,14.977]
[1724988794638,0.0059635,2513.6,2513.5,55.777]
[1724988795246,0.0059635,2513.6,2513.5,48.38403]
[1724988796737,0.0059635,2513.6,2513.5,49.3786]
[1724988797344,0.0059635,2513.6,2513.5,48.38403]
[1724988800550,0.0059635,2513.6,2513.5,45.17623]
[1724988800744,0.0059635,2513.6,2513.5,48.38403]
[1724988803248,0.4037735,2513.6,2513.4,0.39784]
[1724988803445,0.8257,2513.5,2513.4,0.39784]
[1724988803846,0.0059635,2513.6,2513.5,0.39783]
[1724988804042,0.0059635,2513.6,2513.5,0.80603]
[1724988804243,0.0059635,2513.6,2513.5,4.78443]
[1724988805355,0.0059635,2513.6,2513.5,8.9868]
[1724988805954,0.0059635,2513.6,2513.5,3.60563]
[1724988808254,0.0059635,2513.6,2513.5,4.222186]
[1724988808455,0.00153526,2513.6,2513.5,8.200586]
[1724988808860,0.00153526,2513.6,2513.5,7.58403]
[1724988809154,0.00153526,2513.6,2513.5,8.20055677]
[1724988810361,0.00153526,2513.6,2513.5,9.08958301]
[1724988810556,0.00153526,2513.6,2513.5,11.07872301]
[1724988810749,0.00153526,2513.6,2513.5,11.50332301]
[1724988811163,0.00153526,2513.6,2513.5,12.95853896]
[1724988811550,0.00153526,2513.6,2513.5,12.54135803]
[1724988812056,0.00153526,2513.6,2513.5,14.53050595]
[1724988812254,0.00153526,2513.6,2513.5,14.9477156]
[1724988812454,0.00153526,2513.6,2513.5,13.02495294]
[1724988812661,0.00153526,2513.6,2513.5,14.94754876]
[1724988812861,0.00153526,2513.6,2513.5,11.96383084]
[1724988813049,0.00153526,2513.6,2513.5,11.50323695]
[1724988813250,0.00153526,2513.6,2513.5,15.09365347]
[1724988814757,0.00153526,2513.6,2513.5,14.66905347]
[1724988815264,0.00153526,2513.6,2513.5,12.49045219]
[1724988815470,0.00153526,2513.6,2513.5,11.49588219]
[1724988816259,0.00153526,2513.6,2513.5,13.15477732]
[1724988816459,0.00153526,2513.6,2513.5,13.57201287]
[1724988816759,0.00153526,2513.6,2513.5,17.55050023]
[1724988817256,4.034,2513.9,2513.8,0.39778]
[1724988817464,4.8597,2514.0,2513.9,0.39776]
[1724988817658,4.8597,2514.0,2513.9,5.87086964]
[1724988817857,4.8597,2514.0,2513.9,4.30964146]
[1724988818358,4.8597,2514.0,2513.9,5.87090515]
[1724988818764,4.8597,2514.0,2513.9,4.30964146]